Cogmind - Beta 13 @@@ ROGUE MODE // 2024.05.05 @ 09:07:41 Player: yomama Result: Destroyed by G-47 Trooper with Particle Gun Performance ------------- Evolutions (2) 1000 Regions Visited (3) 600 Robots Destroyed (71) 355 Value Destroyed (1839) 1839 Prototype IDs (1) 20 Alien Tech Used (0) 0 Bonus (0) 0 TOTAL SCORE: 3814 Bonus ------- None Cogmind --------- Core Integrity 0/550 Matter 300/300 Energy 13/100 System Corruption 0% Temperature Cool (9) Movement Core (1400) Ox27 Location -8/Materials Parts ------- > --- POWER (1) -------- (None) > --- PROPULSION (2) --- (None) > --- UTILITY (6) ------ Huge Storage Unit Signal Interpreter Transport Network Coupler Targeting Computer > --- WEAPON (2) ------- Improved EM Shotgun > --- INVENTORY (25) --- Light Ion Engine Improved Ion Engine Light Treads Aluminum Leg Aluminum Leg Aluminum Leg Titanium Leg Heat Sink Large Storage Unit Advanced Visual Processing Unit Hardened Light Armor Plating Improved EM Shotgun Spread Laser High-powered Shotgun Grenade Launcher Katana Peak State ------------ > --- POWER ------------ Light Angular Momentum Engine > --- PROPULSION ------- Improved Treads Advanced Treads > --- UTILITY ---------- Huge Storage Unit Signal Interpreter Transport Network Coupler Targeting Computer Improved Light Armor Plating > --- WEAPON ----------- Beam Rifle Spread Laser > --- INVENTORY -------- Light Ion Engine Light Ion Engine Improved Ion Engine Light Treads Light Treads Aluminum Leg Aluminum Leg Aluminum Leg Titanium Leg Heat Sink Large Storage Unit Advanced Visual Processing Unit Hardened Light Armor Plating Shield Generator Improved EM Shotgun Improved EM Shotgun Light EM Pulse Cannon High-powered Shotgun Grenade Launcher Katana [Rating: 24] Favorites ----------- Power Improved Ion Engine Engine Improved Ion Engine Propulsion Light Treads Treads Light Treads Leg Aluminum Leg Wheel Compact Wheel Utility Seismic Detector Device Seismic Detector Storage High-capacity Storage Unit Processor Targeting Computer Protection Improved Light Armor Plating Weapon Heavy Assault Rifle Energy Gun Medium Laser Energy Cannon Beam Cannon Ballistic Gun Heavy Assault Rifle Special Melee Weapon Datajack Build | -11 -10 -9 -8 ------- Run | Yrd Mat Mat Mat Slots Evolved 4 | . . 2 2 Power . | . . . . Propulsion . | . . . . Utility 4 | . . 2 2 Weapon . | . . . . Parts Attached 60 | 7 19 9 25 Power 8 | 1 4 . 3 Engine 8 | 1 4 . 3 Core . | . . . . Reactor . | . . . . Propulsion 16 | 2 4 2 8 Treads 10 | 2 2 2 4 Leg 4 | . 2 . 2 Wheel 2 | . . . 2 Hover . | . . . . Flight . | . . . . Utility 15 | 2 1 5 7 Device 5 | 1 . 2 2 Storage 4 | 1 1 1 1 Processor 3 | . . 2 1 Hackware . | . . . . Protection 3 | . . . 3 Artifact . | . . . . Weapon 21 | 2 10 2 7 Energy Gun 6 | 1 2 . 3 Energy Cannon 4 | . 3 . 1 Ballistic Gun 10 | 1 4 2 3 Ballistic Cannon . | . . . . Launcher . | . . . . Special Weapon . | . . . . Impact Weapon . | . . . . Slashing Weapon . | . . . . Piercing Weapon . | . . . . Special Melee Weapon 1 | . 1 . . Unidentified Prototypes 1 | . 1 . . Parts Lost 23 | . 4 1 18 Power 5 | . 2 . 3 Propulsion 6 | . 1 . 5 Utility 4 | . . . 4 Weapon 8 | . 1 1 6 Highest Loss Streak 6 | . 2 1 6 To Critical Strikes . | . . . . Average Slot Usage (%) 97 | . 99 95 94 Engine 11 | . 13 11 8 Treads 19 | . 22 22 12 Leg 3 | . 4 . 2 Device 11 | . 14 10 7 Storage 12 | . 14 11 9 Processor 10 | . . 18 27 Protection 2 | . . . 8 Energy Gun 7 | . 10 . 5 Energy Cannon 1 | . 2 . . Ballistic Gun 14 | . 14 21 11 Naked Turns . | . . . . Heaviest Build 98 | 13 54 54 98 Greatest Support 45 | 40 40 40 45 Greatest Overweight (x) 16 | . 16 1 4 Average Overweight (x) 1 | . 1 . 1 Largest Inventory Capacity 25 | 8 20 20 25 Average Capacity 19 | 6 19 19 20 Most Carried 20 | 6 20 20 20 Average Carried 16 | 4 16 17 15 Final Capacity 25 | 8 20 15 25 Final Carried 20 | 6 20 14 16 Class Distribution -------------------- 82% | Mutant 17% | Scavenger-Mutant Dominant Class ---------------- Mutant | -10/Materials Mutant | -9/Materials Scavenger-Mutant | -8/Materials Resources | -11 -10 -9 -8 ----------- Run | Yrd Mat Mat Mat Matter Collected 1560 | 165 411 373 611 Remotely . | . . . . Salvage Created 2787 | 27 752 724 1284 Parts 140 | 6 36 37 61 Haulers Intercepted 3 | . 2 1 . Recyclers Shooed 8 | . 2 2 4 Parts Field Recycled . | . . . . Retrieved Matter . | . . . . Parts Self-Destructed . | . . . . Prevented . | . . . . Kills | -11 -10 -9 -8 ------- Run | Yrd Mat Mat Mat Combat Hostiles Destroyed 41 | . 10 8 23 Guns 36 | . 6 8 22 Cannons 4 | . 4 . . Classes Destroyed 11 | 1 7 3 . Worker 5 | . 1 3 1 Builder 7 | . 2 4 1 Tunneler 2 | 2 . . . Hauler 3 | . 2 1 . Recycler 9 | . 4 2 3 Watcher 4 | . 2 2 . Swarmer 5 | . 2 . 3 Grunt 25 | . 8 4 13 Brawler 1 | . . 1 . Duelist 2 | . . 1 1 Sentry 8 | . . 2 6 Best Kill Streak 6 | 1 4 6 6 Combat Bots Only 6 | . 2 3 6 Max Kills in Single Turn 3 | 1 3 2 2 Gunslinging . | . . . . Exploded . | . . . . Melee . | . . . . Uniques/NPCs Destroyed . | . . . . Combat | -11 -10 -9 -8 -------- Run | Yrd Mat Mat Mat Hostile Shots Fired 361 | . 108 33 220 Missed 66 | . 25 6 35 Damage Taken 4215 | . 976 401 2838 Core 737 | . 145 32 560 Absorbed by Shields 64 | . . . 64 Core Remaining (%) 78 | 100 42 92 . Volleys Fired 237 | 2 72 43 120 Largest 2 | 2 2 2 2 Hottest 121 | 70 120 46 121 Shots Fired 440 | 4 137 85 214 Gun 413 | 4 111 85 213 Cannon 27 | . 26 . 1 Launcher . | . . . . Special . | . . . . Kinetic 308 | 2 53 85 168 Thermal 126 | 2 84 . 40 Explosive . | . . . . Electromagnetic 6 | . . . 6 Robot Hit Streak 30 | 2 12 14 30 Robot Miss Streak 6 | 1 6 3 4 Penetration Max . | . . . . Secondary Targets 2 | . . 2 . Max Gunslinging Chain 1 | . . 1 . Shots Hit Robots 316 | 3 89 61 163 Core Hits 140 | 2 31 27 80 Critical Kills . | . . . . Critical Parts Destroyed 1 | . . 1 . Critical Strikes 8 | . 4 1 3 Burn 7 | . 4 . 3 Destroy 1 | . . 1 . Melee Attacks 5 | . 5 . . Impact . | . . . . Slashing . | . . . . Piercing . | . . . . Sneak Attacks 5 | . 5 . . Combat Hostiles . | . . . . Follow-up Attacks . | . . . . Damage Inflicted 4682 | 38 1404 963 2277 Guns 4107 | 38 883 963 2223 Cannons 286 | . 263 . 23 Explosions 246 | . 246 . . Melee . | . . . . Ramming 43 | . 12 . 31 Kinetic 3112 | 25 494 963 1630 Thermal 1423 | 13 898 . 512 Explosive . | . . . . Electromagnetic 104 | . . . 104 Impact . | . . . . Slashing . | . . . . Piercing . | . . . . Highest Corruption . | . . . . Average Corruption . | . . . . Corruption Purged . | . . . . Corruption Blocked . | . . . . Overload Shots . | . . . . Overflow Damage 178 | . 178 . . Projectiles . | . . . . Explosions 178 | . 178 . . Melee . | . . . . Knockbacks . | . . . . Impact . | . . . . Kinetic . | . . . . Secondary . | . . . . Self-Inflicted Damage 79 | . 76 . 3 Shots 1 | . 1 . . Rammed 4 | . 2 . 2 Targets Rammed 7 | . 2 . 5 Kicked 3 | . . . 3 Crushed . | . . . . Highest Temperature 483 | 9 483 2 409 Average Temperature 102 | 6 103 2 105 Received Heat Transfer 1947 | . 375 123 1449 Effects 10 | . 4 . 6 Shutdowns 2 | . 1 . 1 Energy Bleed 2 | . . . 2 Interference 4 | . 1 . 3 Damage (major) 2 | . 2 . . Siege Activations . | . . . . Robots Corrupted . | . . . . Combat Hostiles . | . . . . Parts Fried 1 | . . . 1 Impact Corruptions . | . . . . Robots Melted 1 | . . . 1 Combat Hostiles 1 | . . . 1 Parts Melted 8 | . 7 . 1 Heat Transferred 3517 | 37 2148 . 1332 Parts Sabotaged . | . . . . Parts Stolen . | . . . . Parts Stripped . | . . . . Power Chain Reactions . | . . . . Alert | -11 -10 -9 -8 ------- Run | Yrd Mat Mat Mat Peak Influence 352 | 10 145 206 352 Initial 23 | . 6 5 23 Average 93 | 2 33 81 222 Maximum Alert Level 1 | . . 1 1 Low Security (%) 81 | 100 100 98 32 Level 1 18 | . . 1 67 Level 2 . | . . . . Level 3 . | . . . . Level 4 . | . . . . Level 5 . | . . . . High Security . | . . . . Max Security . | . . . . Squads Dispatched 3 | . 1 . 2 Investigation . | . . . . Extermination . | . . . . Reinforcement 2 | . 1 . 1 Assault . | . . . . Garrison 1 | . . . 1 Intercept . | . . . . Searches Triggered . | . . . . Construction Impeded . | . . . . Haulers Reinforced . | . . . . Active Scanning Responses . | . . . . Cargo Convoy Interrupts . | . . . . Stealth | -11 -10 -9 -8 --------- Run | Yrd Mat Mat Mat Distress Signals 6 | . . 1 5 Communications Jammed . | . . . . Distress Signals . | . . . . Times Spotted 83 | . 28 13 42 Peak Tracking Total 7 | . 3 3 7 Tactical Retreats 5 | . . . 5 Traps | -11 -10 -9 -8 ------- Run | Yrd Mat Mat Mat Traps Triggered . | . . . . Indirectly . | . . . . Trap Hack Attempts . | . . . . Triggered . | . . . . Disarmed . | . . . . Reprogrammed . | . . . . Reused . | . . . . Traps Extracted . | . . . . Installed . | . . . . Triggered . | . . . . Machines | -11 -10 -9 -8 ---------- Run | Yrd Mat Mat Mat Machines Disabled 7 | . 3 2 2 Max in Single Turn 3 | . 3 1 1 Machines Repaired . | . . . . Machines Dismantled . | . . . . Machines Sabotaged . | . . . . Overloaded Fab Kills . | . . . . Hacking | -11 -10 -9 -8 --------- Run | Yrd Mat Mat Mat Machines Accessed 1 | . 1 . . Terminals 1 | . 1 . . Fabricators . | . . . . Repair Stations . | . . . . Recycling Units . | . . . . Scanalyzers . | . . . . Garrison Access . | . . . . Total Hacks 4 | . 4 . . Successful . | . . . . Failed 4 | . 4 . . Catastrophic 1 | . 1 . . Database Lockouts . | . . . . Manual . | . . . . Terminals 4 | . 4 . . Fabricators . | . . . . Repair Stations . | . . . . Recycling Units . | . . . . Scanalyzers . | . . . . Garrison Access . | . . . . Terminal Hacks . | . . . . Fabricator Hacks . | . . . . Repair Station Hacks . | . . . . Recycling Unit Hacks . | . . . . Scanalyzer . | . . . . Garrison Access Hacks . | . . . . Unauthorized Hacks . | . . . . Terminals . | . . . . Fabricators . | . . . . Repair Stations . | . . . . Recycling Units . | . . . . Scanalyzers . | . . . . Garrison Access . | . . . . Data Cores Recovered . | . . . . Used . | . . . . Hacking Detections 1 | . 1 . . Full Trace Events . | . . . . Feedback Events . | . . . . Feedback Blocked . | . . . . Robot Schematics Acquired . | . . . . Robots Built . | . . . . Authchips . | . . . . Time . | . . . . Total Robot Build Rating . | . . . . Part Schematics Acquired . | . . . . Parts Built . | . . . . Authchips . | . . . . Time . | . . . . Total Part Build Rating . | . . . . Parts Repaired . | . . . . Time . | . . . . Parts Recycled . | . . . . Recycled Matter . | . . . . Retrieved Matter . | . . . . Retrieved Components . | . . . . Parts Scanalyzed . | . . . . Part Schematics Acquired . | . . . . Parts Damaged . | . . . . Bothacking | -11 -10 -9 -8 ------------ Run | Yrd Mat Mat Mat Used RIF Installer . | . . . . Robots Hacked 2 | . 2 . . Non-combat 2 | . 2 . . Combat . | . . . . Robot Hacks Applied 3 | . 3 . . parse_system 1 | . 1 . . no_distress 1 | . 1 . . check_alert 1 | . 1 . . Relay Couplers Released . | . . . . Fabnet Peak Effective % . | . . . . Robots Rewired . | . . . . Allies Hacked . | . . . . Hacks Repelled . | . . . . Allies | -11 -10 -9 -8 -------- Run | Yrd Mat Mat Mat Total Allies . | . . . . Largest Group . | . . . . Highest-Rated Group . | . . . . Highest-Rated Ally . | . . . . Total Orders . | . . . . Ally Attacks . | . . . . Total Damage . | . . . . Kills . | . . . . Allies Corrupted . | . . . . Allies Melted . | . . . . Intel | -11 -10 -9 -8 ------- Run | Yrd Mat Mat Mat Robot Analysis Total . | . . . . Derelict Logs Recovered . | . . . . Drone Launches . | . . . . Drone Recoveries . | . . . . Exploration | -11 -10 -9 -8 ------------- Run | Yrd Mat Mat Mat Turns Passed 5049 | 132 2643 864 1410 Spaces Moved 1634 | 71 909 246 408 Core 6 | 3 3 . . Treads 1365 | 68 765 246 286 Legs 213 | . 141 . 72 Wheels 50 | . . . 50 Hover . | . . . . Flight . | . . . . Fastest Speed 50 | 50 160 160 115 Average Speed 232 | 155 244 218 226 Slowest Speed 850 | 160 850 240 465 Overloaded Moves . | . . . . Propulsion Burnouts . | . . . . Robots Hopped . | . . . . Cave-ins Triggered . | . . . . Exploration Rate (%) 29 | 4 78 14 22 Regions Visited 3 Branch Regions . Pre-discovered Areas . | . . . . Known Exits Taken 1 | . . 1 . Unknown Exits Taken 2 | 1 1 . . Scrap Searched . | . . . . Spaces Dug . | . . . . Terrain Destroyed 23 | . 23 . . Melee . | . . . . Projectile . | . . . . AOE 23 | . 23 . . Terrain Rammed . | . . . . Walls Destroyed . | . . . . Machines Disabled . | . . . . Actions | -11 -10 -9 -8 --------- Run | Yrd Mat Mat Mat Total 2450 | 85 1195 488 682 Wait 418 | . 143 173 102 Move 1631 | 70 908 245 408 Hop . | . . . . Pick Up 57 | 6 27 11 13 Fast Attach 19 | 7 5 2 5 Attach 26 | . 6 3 17 Detach 9 | . 3 1 5 Swap 15 | . 8 4 3 Drop 26 | . 16 6 4 Fire 237 | 2 72 43 120 Melee 5 | . 5 . . Ram 1 | . . . 1 Kick 3 | . . . 3 Crush 3 | . 2 . 1 Escape Stasis . | . . . . Rewire . | . . . . Trap . | . . . . Miscellaneous . | . . . . Route ------- -11/Scrapyard -10/Materials (discovered 4 exits: [*Mat x2] / [*Min] / [*Sub]) -9/Materials -8/Materials History --------- Turn | Location | Event 47 | -11/Scrapyard | Discovered new exit (range 15) 133 | -11/Scrapyard | Entered Materials 305 | -10/Materials | Build established: Mutant 480 | -10/Materials | Discovered new exit (range 16) 1484 | -10/Materials | Discovered new exit (range 9) 1676 | -10/Materials | Discovered new exit (range 12) 2048 | -10/Materials | Core integrity fell below 50% 2654 | -10/Materials | Discovered new exit (range 4) 2776 | -10/Materials | Entered another Materials area 2776 | -9/Materials | Evolved 2 slots: Utility x2 3486 | -9/Materials | Discovered new exit (range 13) 3639 | -9/Materials | Identified exit to Materials 3640 | -9/Materials | Entered another Materials area 3640 | -8/Materials | Evolved 2 slots: Utility x2 3883 | -8/Materials | Garrison activated, responded to threat 4140 | -8/Materials | Lost 6 parts (2n1u3w) 4219 | -8/Materials | Core integrity fell below 50% 4420 | -8/Materials | Build established: Scavenger-Mutant 4974 | -8/Materials | Lost 3 parts (1p1n1w) 5013 | -8/Materials | Core integrity fell below 20% 5050 | -8/Materials | Destroyed by G-47 Trooper with Particle Gun Last Messages --------------- R-06 Scavenger collects Carbon-fiber Leg. K-01 Serf collects debris. Acquired 10 matter. K-01 Serf collects debris. Imp. Treads destroyed. Beam Rifle destroyed. Lgt. Angular Momentum Engine destroyed. G-50 Soldier destroyed. K-01 Serf collects debris. Acquired 37 matter. Acquired 3 matter. Imp. Light Armor Plating destroyed. Lgt. Ion Engine destroyed. Lgt. EM Pulse Cannon destroyed. Shield Generator destroyed. Acquired 10 matter. Lgt. Treads destroyed. Imp. Heat Sink fried. G-47 Trooper destroyed. Adv. Treads destroyed. Map ----- +----------------------------------------------------+ | ?????????????????????????????????????????????????? | | ?????????????????????????????????????????????????? | | ?????????????????????????????????????????????????? | | ??????????????????????###????????????????????????? | | ????????????????????? ???????????????????????? | | ????????????????????? #??????????????????????? | | ?????????????????????? #??????????????????????? | | ?????????????????????? #??????????????????????? | | ??????????????????????# #??????????????????????? | | ??????????????????????# #??????????????????????? | | ??????????????????????# #??????????????????????? | | ??????????????????????# #??????????????????????? | | ??????????????????????# #?????#????????????????? | | ??????????????a???????# #???? #????????????????? | | ?????????????????????##^^ ##?? #????????????????? | | ?????????????????????# ###+######+####???????? | | ?????????????????????# ??????? | | ?????????????????????# ??????? | | ?????????????????????# ??????? | | ?????????????????????# ########### #???????? | | ?????????????????????##%####?????????# ####????? | | ??????????????????????# #######??????# !##???? | | ??????????????????????# # #??????+ !#???? | | ???????????????######## #* #??????# !#???? | | ???????? / %+%% #??????# !????? | | ???????????????######## #@ #??????# ?????? | | ??????????????????????# ##g####??????# ??????? | | ??????????????????????# %#?????????# #???????? | | ??????????????????????#### #??????#+## #???????? | | ???????????????????????### ###????# #######?? | | ???????????????????????# #????# ??? | | ???????????????######### ###### #???????? | | ???????????????# "T" [ + #???????? | | ???????????????# # ##########+#####????? | | ???????????????# # #?????# T #????? | | ??????????###??#+######## ######## #????? | | ?????###### #### ######## # + #????? | | ?????# % # + %""" # #????? | | ?????# " # a #% """ # #????? | | ?????#*!= %T" # # """ # """ #????? | | ###### = ""*# ########### # """ #????? | | !%%+ % # ! #/ ## # """ #????? | | ######* ! ""%+ %*/ ## # #????? | | ##???#! !""" # =#=* ## !! ##########????? | | #???#![ """ # #= """ ## ! #?????????????? | | #???#![ # # """ ## ! #?????????????? | | #???########## # """ ## #?????????????? | | #????????????# # """ ## #?????????????? | | #????????????# # ## #?????????????? | | #????????????# # #########?????????????? | +----------------------------------------------------+ Best States ------------- Heat Dissipation 31 Energy Generation 18 Energy Capacity 265 Matter Stores 300 Matter Capacity 300 Sight Range 16 Terrain Scan Density 10 Armor Coverage 150 Evasion (%) 40 Targeting Accuracy 5 Recoil Reduction 2 Item Schematics ----------------- None Robot Schematics ------------------ None Fabricated ------------ Nothing Alien Tech Used ----------------- None Achievements -------------- Hey, That's Mine! Challenges ------------ None Game ------ Seed TiamatGaussCompressor Manual? 0 Play Time 00:37:37 Cumulative 6.1 hours Start 2024.05.05 @ 08:11:02 End 2024.05.05 @ 09:07:41 Sessions 1 Manual Loads 0 Difficulty Rogue Special Mode None Game No. 10 Rogue 10 Adventurer 0 Explorer 0 Win Type - Total 0 Types 0/0/0/0/0/0/0/0/0 Lore% 6 Gallery% 11 Achievement% 10 Wizard Run 0 Options --------- Layout 1 ASCII 0 Keyboard 1 Movement Arrows Keybinds 0 Fullscreen 1 Font 24/Smallcaps Map View 50x35 Zoom Use 0% Tactical HUD 0 Map Filters NONE Filters NONE Steam 1 RUN: 014c8d62-a325-4382-b583-58f032be4c79